{"text_format":"1","workbook":"xlsx","n_sheets":1,"sheets":["Лист1"],"not_rendered":{"charts":0,"images":0,"macros":1,"external_links":0,"defined_names":0,"comments":0,"pivot_tables":0},"unopened":[],"bounds":{"document_bytes":16777216,"sheet_cells":100000,"rows_first":2000,"rows_last":500,"rows_between":2000,"halvings":0,"cell_chars":16384,"cell_head_chars":4096},"cells_cut":0,"cells_raw":0,"read":"whole","date_system":"1900"}

{"sheet":"Лист1","index":0,"n_rows":19,"n_cols":6,"rows_kept":19,"cut":false,"hidden":false,"merged":[]}
[null,null,null,"итого"]
["Вася",1,null,{"$f":"IF(жирная_нижняя_граница(A1),SUMIF(F:F,F2,B:B)+SUMIF(F:F,F2,C:C),\"\")","v":2},null,{"$f":"IF(жирная_нижняя_граница(A1),A2,F1)","v":"Вася"}]
[null,null,null,{"$f":"IF(жирная_нижняя_граница(A2),SUMIF(F:F,F3,B:B)+SUMIF(F:F,F3,C:C),\"\")","v":""},null,{"$f":"IF(жирная_нижняя_граница(A2),A3,F2)","v":"Вася"}]
["а",null,1,{"$f":"IF(жирная_нижняя_граница(A3),SUMIF(F:F,F4,B:B)+SUMIF(F:F,F4,C:C),\"\")","v":""},null,{"$f":"IF(жирная_нижняя_граница(A3),A4,F3)","v":"Вася"}]
[null,null,null,{"$f":"IF(жирная_нижняя_граница(A4),SUMIF(F:F,F5,B:B)+SUMIF(F:F,F5,C:C),\"\")","v":""},null,{"$f":"IF(жирная_нижняя_граница(A4),A5,F4)","v":"Вася"}]
["Коля",null,null,{"$f":"IF(жирная_нижняя_граница(A5),SUMIF(F:F,F6,B:B)+SUMIF(F:F,F6,C:C),\"\")","v":1},null,{"$f":"IF(жирная_нижняя_граница(A5),A6,F5)","v":"Коля"}]
[null,null,null,{"$f":"IF(жирная_нижняя_граница(A6),SUMIF(F:F,F7,B:B)+SUMIF(F:F,F7,C:C),\"\")","v":""},null,{"$f":"IF(жирная_нижняя_граница(A6),A7,F6)","v":"Коля"}]
[null,1,null,{"$f":"IF(жирная_нижняя_граница(A7),SUMIF(F:F,F8,B:B)+SUMIF(F:F,F8,C:C),\"\")","v":""},null,{"$f":"IF(жирная_нижняя_граница(A7),A8,F7)","v":"Коля"}]
["Игорь",null,null,{"$f":"IF(жирная_нижняя_граница(A8),SUMIF(F:F,F9,B:B)+SUMIF(F:F,F9,C:C),\"\")","v":20},null,{"$f":"IF(жирная_нижняя_граница(A8),A9,F8)","v":"Игорь"}]
[null,null,null,{"$f":"IF(жирная_нижняя_граница(A9),SUMIF(F:F,F10,B:B)+SUMIF(F:F,F10,C:C),\"\")","v":""},null,{"$f":"IF(жирная_нижняя_граница(A9),A10,F9)","v":"Игорь"}]
[null,10,10,{"$f":"IF(жирная_нижняя_граница(A10),SUMIF(F:F,F11,B:B)+SUMIF(F:F,F11,C:C),\"\")","v":""},null,{"$f":"IF(жирная_нижняя_граница(A10),A11,F10)","v":"Игорь"}]
["Петя",1,null,{"$f":"IF(жирная_нижняя_граница(A11),SUMIF(F:F,F12,B:B)+SUMIF(F:F,F12,C:C),\"\")","v":11},null,{"$f":"IF(жирная_нижняя_граница(A11),A12,F11)","v":"Петя"}]
[null,null,null,{"$f":"IF(жирная_нижняя_граница(A12),SUMIF(F:F,F13,B:B)+SUMIF(F:F,F13,C:C),\"\")","v":""},null,{"$f":"IF(жирная_нижняя_граница(A12),A13,F12)","v":"Петя"}]
[null,null,null,{"$f":"IF(жирная_нижняя_граница(A13),SUMIF(F:F,F14,B:B)+SUMIF(F:F,F14,C:C),\"\")","v":""},null,{"$f":"IF(жирная_нижняя_граница(A13),A14,F13)","v":"Петя"}]
[null,null,null,{"$f":"IF(жирная_нижняя_граница(A14),SUMIF(F:F,F15,B:B)+SUMIF(F:F,F15,C:C),\"\")","v":""},null,{"$f":"IF(жирная_нижняя_граница(A14),A15,F14)","v":"Петя"}]
["б",null,null,{"$f":"IF(жирная_нижняя_граница(A15),SUMIF(F:F,F16,B:B)+SUMIF(F:F,F16,C:C),\"\")","v":""},null,{"$f":"IF(жирная_нижняя_граница(A15),A16,F15)","v":"Петя"}]
["б",null,null,{"$f":"IF(жирная_нижняя_граница(A16),SUMIF(F:F,F17,B:B)+SUMIF(F:F,F17,C:C),\"\")","v":""},null,{"$f":"IF(жирная_нижняя_граница(A16),A17,F16)","v":"Петя"}]
[null,null,null,{"$f":"IF(жирная_нижняя_граница(A17),SUMIF(F:F,F18,B:B)+SUMIF(F:F,F18,C:C),\"\")","v":""},null,{"$f":"IF(жирная_нижняя_граница(A17),A18,F17)","v":"Петя"}]
[null,10,null,{"$f":"IF(жирная_нижняя_граница(A18),SUMIF(F:F,F19,B:B)+SUMIF(F:F,F19,C:C),\"\")","v":""},null,{"$f":"IF(жирная_нижняя_граница(A18),A19,F18)","v":"Петя"}]